bitfinex-derivatives/quotes_ETHF0:USTF0_20260120
["timestamp","ask_amount","ask_price","bid_price","bid_amount"]
[1768910882935,1.2109378,3115.0,3113.7,2.67938077]
[1768910883237,0.31219958,3115.1,3113.7,2.526]
[1768910883542,1.2109378,3114.9,3113.7,2.526]
[1768910885143,1.2109378,3114.6,3113.7,2.526]
[1768910885648,1.2109378,3114.6,3113.5,0.00395547]
[1768910885948,1.2109378,3114.7,3113.5,14.90395547]
[1768910886355,1.36247738,3114.9,3113.5,14.90395547]
[1768910887459,1.36247738,3114.9,3113.5,15.05733624]
[1768910887651,0.15153958,3114.9,3113.6,1.2109378]
[1768910887853,0.16066,3115.0,3113.7,0.15338077]
[1768910888744,0.16066,3115.0,3113.5,14.90395547]
[1768910888745,0.00276039,3115.5,3114.3,0.15338077]
[1768910889759,1.21369819,3115.5,3114.4,0.15338077]
[1768910890055,1.2109378,3115.2,3114.0,2.68038077]
[1768910891349,0.00276039,3115.5,3114.0,2.68038077]
[1768910891559,1.2109378,3115.3,3114.0,2.68038077]
[1768910893052,0.15153958,3115.2,3113.9,1.2109378]
[1768910893259,1.2109378,3114.9,3113.6,0.15338077]
[1768910893450,0.15153958,3115.2,3113.8,0.15338077]
[1768910893656,1.36247738,3115.2,3113.8,0.15338077]
[1768910894858,1.2109378,3115.2,3113.8,0.15338077]
[1768910895158,1.2109378,3115.4,3114.0,1.36431857]
[1768910895552,0.16340039,3115.5,3114.0,1.36431857]
[1768910895752,1.2109378,3115.4,3114.1,0.15338077]
[1768910896958,0.16340039,3115.5,3114.1,0.15338077]
[1768910897154,1.2109378,3115.4,3114.1,0.15338077]
[1768910898056,0.16065,3115.3,3114.1,0.15338077]
[1768910900459,0.16065,3115.3,3113.8,1.2109378]
[1768910900659,0.16065,3115.3,3113.8,1.36431857]
[1768910902258,0.31218958,3115.3,3113.8,1.36431857]
[1768910902559,1.2109378,3115.1,3113.8,1.36431857]
[1768910903461,0.31218958,3115.3,3113.8,1.36431857]
[1768910903654,0.00276039,3115.5,3114.2,0.139634]
[1768910904663,0.00276039,3115.5,3113.6,4.02276485]
[1768910904664,0.00276039,3115.5,3114.4,1.3505718]
[1768910905462,0.00276039,3115.5,3114.5,0.139634]
[1768910909664,0.30146001,3116.5,3114.8,0.139634]
[1768910909969,1.2109378,3116.2,3114.8,0.139634]
[1768910910469,1.2109378,3116.0,3114.8,0.139634]
[1768910910767,1.21391606,3116.0,3114.8,0.139634]
[1768910912269,0.00297826,3116.0,3114.9,1.3505718]
[1768910912469,0.00297826,3116.0,3115.0,0.139634]
[1768910914169,0.00297826,3116.0,3115.2,1.2109378]
[1768910914364,0.64319023,3116.6,3115.2,1.3505718]
[1768910915170,1.85412803,3116.6,3115.2,1.3505718]
[1768910915475,1.85802864,3116.6,3115.2,1.3505718]
[1768910915770,0.64709084,3116.6,3115.2,1.3505718]
[1768910916169,0.64709084,3116.6,3114.7,14.9]
[1768910916170,1.2109378,3116.1,3114.7,15.039634]
[1768910916375,1.2109378,3116.1,3114.5,4.02276485]
[1768910916376,1.2109378,3115.8,3114.5,4.02276485]
[1768910916669,1.2109378,3115.8,3114.4,0.139634]
[1768910917374,1.2109378,3115.8,3114.5,14.9]
[1768910918175,1.2109378,3115.8,3114.4,0.139634]
[1768910918476,1.2109378,3115.1,3114.1,4.02276485]
[1768910918669,1.2109378,3115.1,3113.8,14.9]
[1768910918969,1.2109378,3115.1,3113.6,0.139634]
[1768910919777,1.35181781,3115.1,3113.6,0.139634]
[1768910919974,1.35181781,3115.1,3113.7,14.9]
[1768910923174,0.14088001,3115.1,3113.7,14.9]
[1768910923370,1.2109378,3115.0,3113.7,14.9]
[1768910923875,1.2109378,3115.0,3113.6,0.139634]
[1768910924370,1.2109378,3115.0,3113.6,15.039634]
[1768910924866,1.34743966,3115.0,3113.6,15.039634]
[1768910925073,1.34743966,3115.0,3113.6,0.139634]
[1768910927077,1.50809966,3115.0,3113.6,0.139634]
[1768910928066,1.50809966,3115.0,3113.5,0.00395547]
[1768910928483,0.16067,3114.9,3113.5,0.00395547]
[1768910928780,0.29717186,3114.9,3113.5,0.00395547]
[1768910930786,0.16068,3114.7,3113.5,0.00395547]
[1768910934089,0.30613919,3114.5,3113.5,0.00395547]
[1768910935081,0.14544919,3114.4,3113.5,0.00395547]
[1768910935283,0.14860912,3114.4,3113.5,0.00395547]
[1768910935484,1.35954692,3114.4,3113.5,0.00395547]
[1768910935877,1.52023692,3114.4,3113.5,0.00395547]
[1768910936081,0.30614919,3114.3,3112.8,0.14826649]
[1768910936285,1.2109378,3114.1,3112.8,0.14826649]
[1768910936481,1.2109378,3114.1,3112.8,15.04826649]
[1768910936881,1.35638699,3114.1,3112.5,4.5847278]
[1768910937087,1.35638699,3114.1,3112.5,3.37714849]
[1768910937284,0.14544919,3114.0,3112.5,15.06414849]
[1768910937791,1.35638699,3113.8,3112.5,14.90335849]
[1768910938091,0.14544919,3113.7,3112.5,0.00335849]
[1768910938290,1.2109378,3113.5,3112.5,0.00335849]
[1768910938890,0.30617919,3113.7,3112.5,0.00335849]
[1768910940190,0.00315993,3114.4,3112.5,0.00335849]
[1768910940191,0.30614919,3114.3,3112.5,0.00335849]
[1768910940386,0.14544919,3114.2,3112.5,0.00335849]
[1768910941694,0.30614919,3114.2,3112.5,0.00335849]
[1768910941890,0.14544919,3114.1,3112.5,0.00335849]
[1768910944091,0.30615919,3114.1,3112.5,0.00335849]
[1768910944693,0.14544919,3114.0,3112.5,0.00335849]
[1768910947093,0.30616919,3114.0,3112.5,0.00335849]
[1768910947393,0.14544919,3113.9,3112.5,0.00335849]
[1768910950001,0.14544919,3114.3,3112.5,0.15162498]
[1768910950188,0.14544919,3114.3,3112.7,0.14826649]
[1768910955401,0.14544919,3114.3,3112.8,0.30903649]
[1768910955590,0.00315993,3114.4,3113.1,0.30902649]
[1768910955796,0.00315993,3114.4,3113.3,0.14826649]
[1768910956100,0.00315993,3114.4,3113.4,15.04826649]
[1768910967112,0.00315993,3114.4,3113.5,0.14451898]
[1768910967909,0.14653338,3115.3,3113.7,0.14451898]
[1768910968110,0.14653338,3115.3,3113.8,0.14451898]
[1768910969008,0.14956485,3115.3,3113.8,0.14451898]
[1768910972520,0.14956485,3115.3,3113.8,0.30523898]
[1768910972726,0.14956485,3115.3,3113.9,0.14451898]
[1768910973631,0.00303147,3115.3,3113.9,0.14451898]
[1768910978620,0.14956485,3115.3,3113.7,2.537]
[1768910981435,0.14956485,3115.3,3113.7,6.55976485]
[1768910983632,0.31021485,3115.3,3113.7,6.55976485]
[1768910983936,0.29485489,3115.1,3113.7,6.55976485]
[1768910984230,0.13419489,3115.0,3113.7,2.537]
[1768910985832,0.13419489,3115.0,3113.5,4.32802383]
[1768910995147,0.16066,3115.1,3113.6,0.14234808]
[1768910995538,0.16066,3115.1,3113.7,0.14234808]
[1768910998443,0.13855197,3115.0,3113.6,4.02276485]
[1768910999448,0.13855197,3115.0,3113.6,4.16511293]
[1768911000142,0.16066,3115.1,3113.7,0.14234808]
[1768911000948,0.16066,3115.1,3113.7,1.35367975]
[1768911001552,0.29921197,3115.1,3113.7,1.35367975]
[1768911001748,1.34988364,3114.9,3113.5,4.02276485]
[1768911001941,1.34988364,3114.9,3113.4,5.23409652]
[1768911002143,1.21133167,3114.6,3113.4,4.02276485]
[1768911002344,1.21133167,3114.6,3113.3,2.68934808]
[1768911003143,0.13855197,3114.8,3113.4,1.35367975]
[1768911003550,1.37200167,3114.9,3113.5,0.14234808]
[1768911003551,0.16067,3114.9,3113.5,0.14234808]
[1768911004149,0.16067,3114.9,3113.7,1.21133167]
[1768911004348,1.21133167,3115.1,3113.7,1.21133167]
[1768911004754,0.13855197,3115.2,3113.8,0.14234808]
[1768911004955,0.00303147,3115.3,3114.0,1.21133167]
[1768911008058,0.16368147,3115.3,3114.0,1.21133167]
[1768911008858,0.16368147,3115.3,3114.0,1.35367975]
[1768911009456,0.00303147,3115.3,3114.3,1.35367975]
[1768911011461,0.00303147,3115.3,3114.1,1.21133167]
[1768911011863,1.21436314,3115.3,3114.1,1.21133167]
[1768911013555,0.00303147,3115.3,3114.1,1.21133167]
[1768911014061,1.21133167,3115.1,3113.9,0.14234808]
[1768911014254,1.21133167,3114.8,3113.7,4.02276485]
[1768911014459,1.34988364,3114.8,3113.7,4.02276485]
[1768911014762,1.34988364,3114.8,3113.2,19.06511293]
[1768911014963,1.34988364,3114.8,3113.4,4.02276485]
[1768911015264,1.34988364,3114.8,3113.4,5.23409652]
[1768911015762,1.34988364,3114.8,3113.4,5.3764446]
[1768911018562,1.34988364,3114.8,3113.4,1.35367975]
[1768911019768,0.13855197,3114.8,3113.4,1.35367975]
[1768911020060,0.00303147,3115.3,3114.0,1.21133167]
[1768911020267,0.00303147,3115.3,3114.0,1.35367975]
[1768911027763,1.21133167,3115.1,3113.7,4.02276485]
[1768911027969,1.21133167,3114.8,3113.7,4.02276485]
[1768911028168,1.21133167,3114.8,3113.6,0.13389178]
[1768911029269,1.5144535,3115.1,3113.6,0.13389178]
[1768911034275,1.3537935,3115.1,3113.6,0.13389178]
[1768911034465,0.14246183,3115.0,3113.6,0.13389178]
[1768911034667,0.16067,3114.9,3113.6,0.13389178]
[1768911036677,0.30313183,3114.9,3113.5,4.02276485]
[1768911036877,0.30313183,3114.9,3113.5,5.23409652]
[1768911037277,0.30313183,3114.9,3113.5,1.21133167]
[1768911038372,1.21133167,3114.8,3113.4,4.02276485]
[1768911038578,1.3537935,3114.8,3113.4,4.02276485]
[1768911038784,1.21133167,3114.5,3113.4,4.02276485]
[1768911039180,1.21133167,3114.5,3113.3,4.15665663]
[1768911039674,0.14246183,3114.4,3113.3,4.02276485]
[1768911039879,1.21133167,3113.9,3113.3,4.02276485]
[1768911040079,1.21133167,3113.9,3112.8,4.02276485]
[1768911040281,0.14246183,3114.1,3112.8,4.02276485]
[1768911040483,0.14246183,3114.1,3112.6,15.06078]
[1768911040982,0.14246183,3114.1,3112.6,0.16078]
[1768911041284,0.16072,3113.9,3112.5,4.16001512]
[1768911041477,0.16072,3113.9,3112.5,19.06001512]
[1768911041684,0.16072,3113.9,3112.5,4.16001512]
[1768911041884,1.37205167,3113.9,3112.5,4.16001512]
[1768911043179,1.37205167,3113.9,3112.5,0.13725027]
[1768911044485,0.16072,3113.9,3112.7,1.21133167]
[1768911045484,1.21133167,3115.2,3112.7,1.21133167]
[1768911045485,0.30810326,3114.5,3112.8,0.13665185]
[1768911045679,1.21133167,3114.4,3113.0,1.21133167]
[1768911046576,0.30810326,3114.5,3113.1,0.13665185]
[1768911046882,0.16069,3114.5,3113.3,1.34798352]
[1768911049287,0.16069,3114.5,3113.3,0.13665185]
[1768911049782,0.14741326,3114.9,3113.5,1.34798352]
[1768911053187,0.16066,3115.0,3113.8,1.21133167]
[1768911053883,0.16066,3115.0,3113.6,0.13665185]
[1768911054285,1.37200167,3114.9,3113.6,0.13665185]
[1768911056588,0.16067,3114.9,3113.6,0.13665185]
[1768911056788,0.16067,3114.9,3113.6,1.34798352]
[1768911057087,0.15044473,3115.3,3113.9,1.21133167]
[1768911058580,0.16065,3115.2,3113.9,1.21133167]
[1768911059987,0.16065,3115.2,3113.9,1.34919682]
[1768911060289,0.16065,3115.2,3114.0,0.13786515]
[1768911061282,0.16065,3115.2,3113.9,1.21133167]
[1768911061487,0.00303147,3115.3,3113.6,15.03786515]
[1768911061488,0.29565447,3115.1,3113.6,16.11133167]
[1768911061687,1.34632614,3115.0,3113.6,16.11133167]
[1768911062190,1.34632614,3115.0,3113.6,1.21133167]
[1768911062890,0.13499447,3115.0,3113.4,0.13786515]
[1768911063091,0.29565447,3115.0,3113.4,0.13786515]
[1768911064488,0.13499447,3114.9,3113.2,0.16075]
[1768911064695,0.13499447,3114.8,3113.2,0.29861515]
[1768911065291,0.13499447,3114.8,3113.3,0.13786515]
[1768911066389,0.13499447,3114.8,3113.1,4.02276485]
[1768911066786,0.29567447,3114.7,3113.0,4.16063]
[1768911067292,0.29567447,3114.7,3113.0,0.13786515]
[1768911067490,0.29567447,3114.7,3113.0,4.16063]
[1768911067692,0.29567447,3114.7,3113.1,0.13786515]
[1768911070597,0.16068,3114.7,3113.2,0.13786515]
[1768911073495,0.1607,3114.4,3113.2,0.13786515]
[1768911077191,0.1607,3114.4,3113.2,4.16063]
[1768911079294,0.13499447,3114.8,3113.3,0.13786515]
[1768911084302,0.29566447,3114.8,3113.3,0.13786515]
[1768911085803,0.29566447,3114.8,3113.3,4.16063]
[1768911088904,0.13623168,3114.7,3113.2,4.02276485]
[1768911090110,0.16068,3114.6,3113.1,2.565]
[1768911090701,0.16068,3114.6,3113.1,2.69902871]
[1768911091912,0.16068,3114.6,3113.2,0.13402871]
[1768911096012,0.29692168,3114.5,3113.1,6.58776485]
[1768911096212,0.29692168,3114.5,3113.1,2.565]
[1768911099210,0.29692168,3114.5,3113.1,2.69902871]
[1768911100211,0.29692168,3114.5,3113.2,4.02276485]
[1768911101113,0.16069,3114.5,3113.3,0.13402871]
[1768911104832,0.30408606,3114.5,3113.2,4.02276485]
[1768911105325,0.14339606,3114.4,3113.2,4.02276485]
[1768911105639,0.14339606,3114.2,3113.0,4.02276485]
[1768911105824,0.14339606,3114.2,3112.8,4.02276485]
[1768911106330,0.14339606,3114.2,3112.7,18.92276485]
[1768911106628,0.30409606,3114.2,3112.7,19.06680949]
[1768911107830,0.30410606,3114.1,3112.7,19.06680949]
[1768911108221,0.30410606,3114.1,3112.7,4.16680949]
[1768911108723,0.14339606,3114.0,3112.7,4.02276485]
[1768911109226,0.14339606,3114.0,3112.5,6.61512334]
[1768911110329,0.14339606,3114.0,3112.5,6.75916798]
[1768911110523,0.14339606,3114.0,3112.6,0.14404464]
[1768911115435,0.16071,3114.1,3112.6,0.14404464]
[1768911119940,0.13867087,3114.4,3112.9,0.14298383]
[1768911121646,0.13867087,3114.3,3112.8,4.02276485]
[1768911121938,0.13867087,3114.3,3112.8,2.604]
[1768911122740,0.13867087,3114.3,3112.8,2.74698383]
[1768911124041,0.13867087,3114.3,3112.9,0.14298383]
[1768911124838,0.13867087,3114.3,3113.2,1.21182042]
[1768911128136,0.16069,3114.4,3113.2,1.21182042]
[1768911133354,0.16069,3114.4,3113.5,1.21182042]
[1768911133554,0.13867087,3114.7,3113.5,1.21182042]
[1768911135256,0.13867087,3114.7,3113.8,1.21182042]
[1768911136454,0.29933087,3115.0,3113.8,1.21182042]
[1768911137051,0.29933087,3115.0,3113.2,0.14298383]
[1768911137353,0.29933087,3115.0,3113.8,1.21182042]
[1768911140961,0.29933087,3115.0,3113.5,0.14298383]
[1768911141259,0.29933087,3115.0,3113.7,1.21182042]
[1768911147966,0.29933087,3115.0,3113.5,0.14298383]
[1768911148169,0.29933087,3115.0,3113.6,1.21182042]
[1768911151071,0.16067,3114.9,3113.6,1.21182042]
[1768911152768,1.21182042,3114.8,3113.5,0.14298383]
[1768911153473,0.1342347,3114.7,3113.3,1.21182042]
[1768911154374,0.1342347,3114.7,3113.2,4.02276485]
[1768911154562,0.16068,3114.6,3113.3,1.21182042]
[1768911157678,0.16068,3114.6,3113.3,1.34467416]
[1768911159372,1.37250042,3114.6,3113.3,4.15561859]
[1768911159565,0.16069,3114.5,3113.3,4.15561859]
[1768911159768,0.16069,3114.4,3113.2,5.23458527]
[1768911159968,0.1607,3114.3,3113.2,4.02276485]
[1768911160177,0.1607,3114.3,3113.1,4.02276485]
[1768911160571,0.1607,3114.3,3113.0,4.02276485]
[1768911162178,0.1607,3114.3,3113.0,4.15561859]
[1768911162580,0.1607,3114.3,3113.2,1.21182042]
[1768911163379,0.30314207,3114.9,3113.5,1.34733166]
[1768911163579,0.46270069,3114.8,3113.5,1.34733166]
[1768911163769,0.30203069,3114.7,3113.5,1.34733166]
[1768911164078,0.16067,3114.8,3114.1,1.21182042]
[1768911165776,0.16067,3114.8,3113.8,0.13551124]
[1768911165979,0.16067,3114.8,3113.9,1.21182042]
[1768911166374,0.16067,3114.8,3113.8,0.13551124]
[1768911168183,0.16067,3114.8,3113.7,1.21182042]
[1768911169076,0.16067,3114.8,3113.6,1.21182042]
[1768911174487,0.16067,3114.8,3113.6,1.35155213]
[1768911178985,0.16068,3114.7,3113.6,1.21182042]
[1768911179189,0.16068,3114.7,3113.3,5.24904611]
[1768911179586,0.16068,3114.7,3113.3,1.21182042]
[1768911180088,0.16068,3114.7,3113.3,1.35155213]
[1768911181284,0.16068,3114.7,3113.4,0.13973171]
[1768911181485,0.16068,3114.7,3113.5,1.21182042]
[1768911182291,0.16068,3114.7,3113.5,1.35155213]
[1768911185793,0.16068,3114.7,3113.6,0.13973171]
[1768911186090,0.00303147,3115.3,3114.2,1.21182042]
[1768911186292,0.30177016,3115.2,3114.2,1.21182042]
[1768911186492,0.00303147,3115.3,3113.9,1.21182042]
[1768911186692,0.30176982,3115.2,3113.9,1.21182042]
[1768911186890,0.00303147,3115.3,3113.8,0.13973171]
[1768911187088,0.3017699,3115.2,3113.8,0.13973171]
[1768911187293,0.00303147,3115.3,3113.8,0.13973171]
[1768911187594,0.16068,3114.7,3113.8,0.13973171]
[1768911188190,0.16368147,3115.3,3113.8,0.13973171]
[1768911188594,0.14685956,3115.3,3113.8,0.13973171]
[1768911188795,0.14685956,3115.3,3113.4,0.13973171]
[1768911189595,0.16067,3114.9,3113.4,0.13973171]
[1768911205522,0.14382809,3115.1,3113.4,0.13973171]
[1768911206621,0.16067,3114.9,3113.4,0.13973171]
[1768911211225,0.29542753,3114.9,3113.4,0.13973171]
[1768911211522,0.29542753,3114.9,3113.5,2.608]
[1768911214016,0.29542753,3114.9,3113.5,2.75071015]
[1768911218117,0.13475753,3114.6,3113.5,2.608]
[1768911225026,0.16068,3114.7,3113.6,0.14599078]
[1768911226831,0.30654575,3115.3,3113.6,0.14599078]
[1768911227030,0.30203899,3115.2,3113.6,0.14599078]
[1768911227331,0.30203899,3115.1,3113.6,0.14599078]
[1768911227524,0.16065,3115.2,3113.6,0.14599078]
[1768911227725,0.30203863,3115.1,3113.6,0.14599078]
[1768911228025,0.30351428,3115.2,3113.6,4.18713082]
[1768911229425,0.30204311,3115.1,3113.6,4.18713082]
[1768911229726,0.30351428,3115.2,3113.6,4.18713082]
[1768911229926,0.3020431,3115.1,3113.6,4.18713082]
[1768911230226,0.30351428,3115.2,3113.6,4.18713082]
[1768911230426,0.30204572,3115.1,3113.6,4.18713082]
[1768911230626,0.30351428,3115.2,3113.6,4.18713082]
[1768911232437,0.30205184,3115.1,3113.6,4.18713082]
[1768911232735,0.30351428,3115.2,3113.6,4.18713082]
[1768911233031,0.30205104,3115.1,3113.6,4.18713082]
[1768911233234,0.30351428,3115.2,3113.6,4.18713082]
[1768911233434,0.30205388,3115.1,3113.6,4.18713082]
[1768911233630,0.30351428,3115.2,3113.6,4.18713082]
[1768911233828,0.30205383,3115.1,3113.6,4.18713082]
[1768911234028,0.30351428,3115.2,3113.6,4.18713082]
[1768911234232,0.30205387,3115.1,3113.6,4.18713082]
[1768911234430,0.30351428,3115.2,3113.6,4.18713082]
[1768911234635,0.30205736,3115.1,3113.6,4.18713082]
[1768911234936,0.16066,3115.0,3113.6,4.18713082]
[1768911235134,0.16066,3115.0,3113.6,0.14599078]
[1768911235336,0.14518538,3114.9,3113.6,0.14599078]
[1768911235635,0.14518538,3114.9,3113.5,6.64914004]
[1768911236040,0.30585538,3114.9,3113.5,6.64914004]
[1768911237340,0.16067,3114.8,3113.5,6.64914004]
[1768911237736,0.16368147,3115.3,3113.6,0.13769662]
[1768911237941,0.00303147,3115.3,3114.4,1.21118511]
[1768911238444,0.00303147,3115.3,3114.2,4.17883666]
[1768911239439,0.00303147,3115.3,3114.2,4.04114004]
[1768911239739,0.14821685,3115.3,3113.9,4.04114004]
[1768911240138,0.14821685,3115.3,3113.8,4.17883666]
[1768911240640,0.14821685,3115.3,3113.8,0.13769662]
[1768911241239,0.14821685,3115.3,3113.8,4.17883666]
[1768911241442,0.30886685,3115.3,3113.8,4.17883666]
[1768911241641,0.14518538,3115.0,3113.7,4.04114004]
[1768911242042,0.14518538,3115.0,3113.6,2.614]
[1768911242043,0.14518538,3115.0,3113.6,6.65514004]
[1768911242745,0.30584538,3115.0,3113.6,2.614]
[1768911243442,0.30584538,3115.0,3113.6,6.79283666]
[1768911244148,0.30584538,3115.0,3113.6,2.75169662]
[1768911246455,0.16066,3115.0,3113.7,0.13769662]
[1768911246852,0.16066,3115.0,3113.8,1.21123864]
[1768911250459,0.16066,3115.0,3113.8,1.34893526]
[1768911255663,0.16066,3115.0,3113.8,0.13769662]
[1768911259566,0.16066,3115.0,3113.7,1.21123864]
[1768911260363,1.35642402,3114.3,3113.2,9.81229925]
[1768911260765,1.35642402,3114.3,3113.2,5.77115921]
[1768911261165,1.35642402,3114.3,3113.0,4.04114004]
[1768911263574,1.35642402,3114.3,3112.9,5.25237868]
[1768911263768,1.35642402,3114.3,3112.9,4.04114004]
[1768911263970,1.35642402,3114.3,3113.0,1.21123864]
[1768911267176,1.51712402,3114.3,3113.0,1.21123864]
[1768911267576,1.51712402,3114.3,3112.9,4.04114004]
[1768911267778,0.13748018,3114.2,3112.8,4.04114004]
[1768911271373,1.21123864,3113.9,3112.8,4.04114004]
[1768911271665,1.21123864,3113.9,3112.6,4.04114004]
[1768911271864,0.16071,3114.0,3112.8,1.21123864]
[1768911272071,0.16071,3114.0,3113.1,1.21123864]
[1768911273275,0.16071,3114.0,3113.0,1.21123864]
[1768911274170,0.16071,3114.0,3112.9,0.13595472]
[1768911274376,0.16071,3114.0,3113.0,1.21123864]
[1768911275367,1.34871882,3114.5,3113.0,1.21123864]
[1768911275780,1.34871882,3114.5,3113.0,1.34719336]
[1768911275980,0.13748018,3114.5,3113.0,1.34719336]
[1768911277277,0.13748018,3114.5,3112.6,4.04114004]
[1768911277278,0.16068,3114.6,3113.4,0.13595472]
[1768911277474,0.16068,3114.6,3113.6,1.21123864]
[1768911278979,0.16065,3115.2,3113.9,1.21123864]
[1768911279485,0.16065,3115.2,3113.9,1.34719336]
[1768911279677,0.16065,3115.2,3114.0,0.13595472]
[1768911280079,0.00303147,3115.3,3114.2,1.21123864]
[1768911280485,1.35175029,3115.3,3113.8,1.21123864]
[1768911282188,0.14051165,3115.3,3113.9,0.13595472]
[1768911287006,1.35653749,3115.2,3113.8,1.21123864]
[1768911287297,0.14529885,3115.0,3113.5,5.39589969]
[1768911287498,1.35653749,3114.5,3113.5,4.04114004]
[1768911287800,1.35653749,3114.5,3113.1,14.9]
[1768911287801,1.35653749,3114.4,3112.8,5.25237868]
[1768911288105,1.35653749,3114.4,3112.9,16.25475965]
[1768911288309,1.35653749,3114.4,3112.9,1.35475965]
[1768911288897,1.35653749,3114.4,3112.9,0.14352101]
[1768911292108,0.14529885,3114.4,3112.9,0.14352101]
[1768911292302,0.14529885,3114.4,3113.1,1.21123864]
[1768911293007,0.14529885,3114.4,3113.0,1.21123864]
[1768911297106,0.30598885,3114.4,3113.0,1.21123864]
[1768911297308,0.30598885,3114.4,3112.9,0.14352101]
[1768911297309,0.13481336,3114.3,3112.9,1.35475965]
[1768911297904,0.13481336,3114.3,3112.9,0.14352101]
[1768911298107,1.346052,3114.2,3112.8,4.04114004]
[1768911298415,0.13481336,3114.1,3112.8,4.04114004]
[1768911298610,0.13481336,3114.1,3112.6,5.25237868]
[1768911298913,1.346052,3114.1,3112.6,16.11123864]
[1768911299610,1.346052,3114.1,3112.6,16.25113292]
[1768911299810,1.346052,3114.1,3112.6,1.35113292]
[1768911301112,0.13481336,3114.1,3112.9,1.21123864]
[1768911302110,0.13481336,3113.9,3112.5,4.04449853]
[1768911302310,1.21123864,3113.8,3112.5,2.61935849]
[1768911302702,0.13481336,3113.9,3112.5,2.61935849]
[1768911303411,0.16071,3114.0,3112.7,1.21123864]
[1768911303615,0.16071,3114.0,3112.5,2.61935849]
[1768911303616,0.16071,3114.0,3113.0,1.21123864]
[1768911306017,0.13481336,3114.3,3113.0,1.21123864]
[1768911306218,1.21123864,3114.4,3113.0,1.21123864]
[1768911306422,0.16068,3114.6,3113.0,1.35113292]
[1768911306624,0.16068,3114.6,3113.1,0.13989428]
[1768911307117,0.16068,3114.6,3113.3,1.21123864]
[1768911307722,0.16068,3114.6,3113.6,1.21123864]
[1768911308422,0.16068,3114.6,3113.3,1.35113292]
[1768911308922,0.16068,3114.6,3113.3,0.13989428]
[1768911311515,0.13481336,3115.1,3113.3,0.13989428]
[1768911312218,0.29547336,3115.1,3113.3,0.13989428]
[1768911313625,0.29547336,3115.1,3113.3,4.18103432]
[1768911313921,0.29547336,3115.1,3113.4,0.13989428]
[1768911315624,0.29547336,3115.1,3113.5,0.13989428]
[1768911316423,0.29547336,3115.1,3113.5,4.18103432]
[1768911316729,0.29547336,3115.1,3113.6,0.13989428]
[1768911320519,0.29547336,3115.1,3113.6,4.18103432]
[1768911326924,0.13254379,3114.9,3113.5,2.61]
[1768911327119,0.13254379,3114.6,3113.4,4.04114004]
[1768911327319,0.13254379,3114.6,3113.3,2.609]
[1768911327819,0.13254379,3114.6,3113.2,2.609]
[1768911328130,0.16068,3114.7,3113.3,0.14099497]
[1768911328720,0.13254379,3115.0,3113.3,0.14099497]
[1768911331631,0.16066,3115.1,3113.4,0.14099497]
[1768911333334,0.16066,3115.1,3113.5,14.9]
[1768911333630,0.16066,3115.1,3113.6,0.14099497]
[1768911334627,0.16066,3115.1,3113.7,0.14099497]
[1768911336337,0.16066,3115.1,3113.8,0.14099497]
[1768911336937,0.00303147,3115.3,3113.8,0.14099497]
[1768911337141,0.00303147,3115.3,3113.8,4.18213501]
[1768911339035,0.00303147,3115.3,3113.9,0.14099497]
[1768911339232,0.00303147,3115.3,3114.0,2.61]
[1768911340935,0.13557526,3115.3,3114.0,2.61]
[1768911341639,0.13557526,3115.3,3113.9,0.14099497]
[1768911341931,0.13557526,3115.3,3114.0,2.612]
[1768911344138,0.00303147,3115.3,3114.1,0.13924408]
[1768911346843,0.00303147,3115.3,3113.8,1.3722754]
[1768911346844,0.00303147,3115.3,3114.2,2.614]
[1768911348040,0.00303147,3115.3,3114.2,2.75324408]
[1768911351427,0.00303147,3115.3,3114.3,0.13924408]
[1768911352040,0.00303147,3115.3,3114.4,0.13924408]
[1768911355935,0.00303147,3115.3,3114.2,4.04114004]
[1768911356140,0.00303147,3115.3,3114.3,2.617]
[1768911357036,0.00303147,3115.3,3114.1,4.04114004]
[1768911357436,0.00303147,3115.3,3114.2,2.618]
[1768911358639,0.13805485,3115.3,3114.0,4.04114004]
[1768911358844,0.13805485,3115.3,3114.0,6.66014004]
[1768911359045,0.13805485,3115.3,3114.0,2.619]
[1768911359447,0.13805485,3115.3,3113.9,4.17444851]
[1768911359743,0.13805485,3115.3,3113.7,2.77973]
[1768911360145,0.13805485,3115.3,3113.7,2.91303847]
[1768911360445,0.13805485,3115.3,3113.8,0.13330847]
[1768911361546,0.13805485,3115.3,3113.5,4.04114004]
[1768911361547,0.13502338,3115.2,3113.9,2.62]
[1768911362148,0.13502338,3115.2,3113.9,2.621]
[1768911362750,0.13502338,3115.2,3113.9,2.75430847]
[1768911362952,0.16368147,3115.3,3113.9,2.75430847]
[1768911363753,0.16368147,3115.3,3114.0,0.13330847]
[1768911365749,0.00303147,3115.3,3114.0,0.13330847]
[1768911366852,0.00303147,3115.3,3114.0,1.34486387]
[1768911367039,0.00303147,3115.3,3114.1,0.13330847]
[1768911367752,0.00303147,3115.3,3114.2,0.13330847]
[1768911368546,0.00303147,3115.3,3114.2,0.29400847]
[1768911368753,0.00303147,3115.3,3114.3,0.13330847]
[1768911368953,0.00303147,3115.3,3114.7,1.21055184]
[1768911369149,0.00303147,3115.3,3114.7,3.83434372]
[1768911370455,0.16062,3115.9,3114.7,3.83434372]
[1768911371457,0.16458447,3115.9,3114.7,3.83434372]
[1768911374957,0.16458447,3115.9,3114.7,1.21434372]
[1768911375158,0.16458447,3115.9,3114.7,2.62179188]
[1768911375860,0.13502338,3115.7,3114.7,0.00379188]
[1768911377358,1.34557522,3115.5,3114.1,4.04114004]
[1768911377559,1.34557522,3115.5,3113.4,3.218]
[1768911377560,1.21055184,3114.9,3113.5,4.17444851]
[1768911377770,1.21055184,3114.9,3113.6,2.617]
[1768911377969,1.21055184,3114.9,3113.5,0.13330847]
[1768911378173,1.21055184,3114.9,3113.6,2.617]
[1768911378363,1.21055184,3114.9,3113.7,2.617]
[1768911378564,1.21055184,3114.9,3113.7,2.62103079]
[1768911378864,1.21055184,3114.9,3113.7,0.00403079]
[1768911379767,1.34557522,3114.9,3113.7,0.00403079]
[1768911380071,0.13502338,3114.8,3113.7,0.00403079]
[1768911380273,1.21055184,3114.6,3113.7,0.00403079]
[1768911381465,0.13502338,3114.5,3113.7,0.00107902]
[1768911381762,1.34557522,3114.3,3112.9,2.617]
[1768911381959,1.34557522,3114.3,3112.8,4.04114004]
[1768911382172,1.34557522,3114.3,3112.7,0.13330847]
[1768911382365,1.34557522,3114.3,3112.8,2.617]
[1768911382560,1.50627522,3114.3,3112.8,0.00365589]
[1768911382769,1.21055184,3114.0,3112.8,0.00365589]
[1768911385970,0.16071,3114.1,3112.8,1.21420773]
[1768911386365,0.14299733,3114.6,3113.1,1.21055184]
[1768911387071,0.14299733,3114.6,3113.1,1.35104657]
[1768911387464,0.16068,3114.7,3113.4,1.35104657]
[1768911387666,0.16068,3114.7,3113.5,0.14049473]